[Event "44th Chess Olympiad Open 2022"]
[Site "Chennai"]
[Date "2022.08.09"]
[Round "11.61"]
[White "Chahin Godoy, Angel Eduardo"]
[Black "Al Kathiri, Mana"]
[Result "1-0"]
[ECO "B12"]
[WhiteElo "1844"]
[BlackElo "1598"]
[Annotator "NA RC COMBH"]
[PlyCount "113"]
[EventDate "2022.07.29"]
[EventType "team-tourn"]
[EventCountry "IND"]
[SourceTitle "playchess.com"]
[Source "ChessBase"]
[SourceQuality "1"]
[WhiteTeam "Honduras"]
[BlackTeam "OMA"]
[WhiteTeamCountry "HON"]
[TimeControl "40/5400+30:1800+30"]

1. e4 {[%emt 0:00:10]} c6 {[%emt 0:00:07]} 2. d4 {[%emt 0:00:23]} d5 {[%emt 0:00:01]} 3. e5 {[%emt 0:00:36]} Bf5 {[%emt 0:00:07]} 4. Nf3 {[%emt 0:00:28]} e6 {[%emt 0:00:07]} 5. c3 {[%emt 0:00:47]} c5 {[%emt 0:01:30]} 6. Be2 {[%emt 0:00:37]} Nc6 {[%emt 0:00:11]} 7. O-O {[%emt 0:00:06]} Qb6 {[%emt 0:01:05]} 8. dxc5 {[%emt 0:01:18]} Bxc5 {[%emt 0:00:46]} 9. b4 {[%emt 0:00:05]} Bf8 {[%emt 0:00:57]} 10. Be3 {[%emt 0:04:31]} Qc7 {[%emt 0:01:10]} 11. Re1 {[%emt 0:08:37]} Nh6 {[%emt 0:04:25]} 12. Qa4 {[%emt 0:02:08]} Qd7 {[%emt 0:07:41]} 13. Bb5 {[%emt 0:08:45]} a6 {[%emt 0:02:12]} 14. Nd4 {[%emt 0:00:41]} Rc8 {[%emt 0:01:40]} 15. Bxc6 {[%emt 0:00:14]} bxc6 {[%emt 0:01:18]} 16. Bxh6 {[%emt 0:05:22]} gxh6 {[%emt 0:00:02]} 17. Nxf5 {[%emt 0:00:09]} exf5 {[%emt 0:00:01]} 18. Qxa6 {[%emt 0:00:15]} Be7 {[%emt 0:03:26]} 19. Nd2 {[%emt 0:01:37]} O-O {[%emt 0:00:18]} 20. Qe2 {[%emt 0:04:37]} Qe6 {[%emt 0:03:54]} 21. Nf3 {[%emt 0:02:26]} Kh8 {[%emt 0:01:33]} 22. Nd4 {[%emt 0:00:53]} Qg6 {[%emt 0:00:13]} 23. Qf3 {[%emt 0:00:14]} Rg8 {[%emt 0:01:53]} 24. Nxf5 {[%emt 0:00:12]} Bg5 {[%emt 0:00:52]} 25. Re2 {[%emt 0:03:25]} Rce8 {[%emt 0:00:40]} 26. g3 {[%emt 0:01:30]} h5 {[%emt 0:00:32]} 27. h4 {[%emt 0:00:20]} Bd8 {[%emt 0:00:44]} 28. Rae1 {[%emt 0:00:29]} Re6 {[%emt 0:03:14]} 29. Kh2 {[%emt 0:05:04]} Rf8 {[%emt 0:04:49]} 30. Nd4 {[%emt 0:00:17]} Ree8 {[%emt 0:00:09]} 31. a4 {[%emt 0:01:23]} Bb6 {[%emt 0:04:44]} 32. Qf6+ {[%emt 0:00:31]} Qxf6 {[%emt 0:00:14]} 33. exf6 {[%emt 0:00:04]} Rxe2 {[%emt 0:00:17]} 34. Rxe2 {[%emt 0:00:04]} Bxd4 {[%emt 0:00:04]} 35. cxd4 {[%emt 0:00:06]} Rb8 {[%emt 0:02:30]} 36. Rb2 {[%emt 0:01:01]} h6 {[%emt 0:00:41]} 37. f4 {[%emt 0:00:11]} Kg8 {[%emt 0:00:54]} 38. b5 {[%emt 0:00:07]} cxb5 {[%emt 0:00:40]} 39. Rxb5 {[%emt 0:00:06]} Ra8 {[%emt 0:02:36]} 40. a5 {[%emt 0:00:13]} Ra6 {[%emt 0:00:02]} 41. Rxd5 {[%emt 0:30:11]} Rxf6 {[%emt 0:30:06]} 42. Rxh5 {[%emt 0:00:49]} Rd6 {[%emt 0:00:15]} 43. Kg2 {[%emt 0:01:50]} Kg7 {[%emt 0:00:20]} 44. Rb5 {[%emt 0:00:14]} Rxd4 {[%emt 0:00:19]} 45. Kf3 {[%emt 0:00:33]} Rd3+ {[%emt 0:00:38]} 46. Kg4 {[%emt 0:00:07]} Ra3 {[%emt 0:01:43]} 47. h5 {[%emt 0:02:01]} Kh7 {[%emt 0:11:00]} 48. Kh4 {[%emt 0:01:10]} Kg7 {[%emt 0:04:07]} 49. g4 {[%emt 0:00:11]} Rf3 {[%emt 0:01:20]} 50. a6 {[%emt 0:00:42]} Ra3 {[%emt 0:03:47]} 51. Rb6 {[%emt 0:01:37]} Rf3 {[%emt 0:02:24]} 52. a7 {[%emt 0:00:25]} Ra3 {[%emt 0:00:23]} 53. Rb7 {[%emt 0:00:03]} Kf6 {[%emt 0:00:45]} 54. g5+ {[%emt 0:00:24]} hxg5+ {[%emt 0:01:52]} 55. fxg5+ {[%emt 0:00:06]} Kg7 {[%emt 0:02:43]} 56. g6 {[%emt 0:01:12]} Kh6 {[%emt 0:01:03]} 57. gxf7 {[%emt 0:00:13]} 1-0

[Event "44th Chess Olympiad Open 2022"]
[Site "Chennai"]
[Date "2022.08.09"]
[Round "11.62"]
[White "Ursus van Bemmelen"]
[Black "Bobby Ballah"]
[Result "1-0"]
[ECO "E05"]
[WhiteElo "2145"]
[BlackElo "1916"]
[Annotator "NA RC"]
[PlyCount "63"]
[EventDate "2022.07.29"]
[EventType "team-tourn"]
[EventCountry "IND"]
[SourceTitle "playchess.com"]
[Source "ChessBase"]
[SourceQuality "1"]
[WhiteTeam "Netherlands Antilles"]
[BlackTeam "Liberia"]
[WhiteTeamCountry "AHO"]
[BlackTeamCountry "LBR"]
[TimeControl "40/5400+30:1800+30"]

1. d4 {[%emt 0:00:04]} Nf6 {[%emt 0:00:05]} 2. c4 {[%emt 0:00:11]} e6 {[%emt 0:00:22]} 3. Nf3 {[%emt 0:00:23]} d5 {[%emt 0:00:12]} 4. g3 {[%emt 0:00:58]} Be7 {[%emt 0:04:11]} 5. Bg2 {[%emt 0:00:25]} O-O {[%emt 0:00:26]} 6. O-O {[%emt 0:01:05]} dxc4 {[%emt 0:01:18]} 7. Qa4 {[%emt 0:00:32]} c5 {[%emt 0:04:48]} 8. dxc5 {[%emt 0:02:44]} Bxc5 {[%emt 0:01:40]} 9. Qxc4 {[%emt 0:00:13]} Bb6 {[%emt 0:06:21]} 10. Nc3 {[%emt 0:00:37]} Nc6 {[%emt 0:01:37]} 11. Bf4 {[%emt 0:02:36]} Qe7 {[%emt 0:04:41]} 12. Ne5 {[%emt 0:08:40]} Nxe5 {[%emt 0:03:12]} 13. Bxe5 {[%emt 0:00:06]} Nd5 {[%emt 0:16:38]} 14. Rfd1 {[%emt 0:15:15]} Bd7 {[%emt 0:05:11]} 15. Nxd5 {[%emt 0:03:01]} exd5 {[%emt 0:00:27]} 16. Qxd5 {[%emt 0:00:25]} Rfe8 {[%emt 0:07:02]} 17. Qxd7 {[%emt 0:06:46]} Qxe5 {[%emt 0:00:08]} 18. e3 {[%emt 0:00:11]} Rad8 {[%emt 0:02:22]} 19. Qxb7 {[%emt 0:01:30]} Qxb2 {[%emt 0:00:45]} 20. Bc6 {[%emt 0:04:51]} Rb8 {[%emt 0:06:22]} 21. Qd7 {[%emt 0:04:47]} Red8 {[%emt 0:11:41]} 22. Qf5 {[%emt 0:00:33]} g6 {[%emt 0:11:13]} 23. Qf3 {[%emt 0:00:25]} Rd2 {[%emt 0:00:53]} 24. Rxd2 {[%emt 0:01:58]} Qxa1+ {[%emt 0:00:45]} 25. Rd1 {[%emt 0:01:16]} Qc3 {[%emt 0:00:57]} 26. Rd7 {[%emt 0:00:32]} Qg7 {[%emt 0:02:33]} 27. Rxf7 {[%emt 0:02:38]} Qxf7 {[%emt 0:00:44]} 28. Bd5 {[%emt 0:00:03]} Rf8 {[%emt 0:00:10]} 29. Bxf7+ {[%emt 0:00:45]} Rxf7 {[%emt 0:00:05]} 30. Qd5 {[%emt 0:00:45]} Kg7 {[%emt 0:00:24]} 31. Qe5+ {[%emt 0:00:32]} Kg8 {[%emt 0:02:01]} 32. Kf1 {[%emt 0:01:24]} 1-0

[Event "44th Chess Olympiad Open 2022"]
[Site "Chennai"]
[Date "2022.08.09"]
[Round "11.62"]
[White "Arnold Smith"]
[Black "Rurik Capella"]
[Result "1/2-1/2"]
[ECO "B13"]
[WhiteElo "1931"]
[BlackElo "1952"]
[Annotator "TA"]
[PlyCount "62"]
[EventDate "2022.07.29"]
[EventType "team-tourn"]
[EventCountry "IND"]
[SourceTitle "playchess.com"]
[Source "ChessBase"]
[SourceQuality "1"]
[WhiteTeam "Liberia"]
[BlackTeam "Netherlands Antilles"]
[WhiteTeamCountry "LBR"]
[BlackTeamCountry "AHO"]
[TimeControl "40/5400+30:1800+30"]

{[%evp 9,62,0,8,-8,9,14,30,0,5,7,8,14,16,1,1,0,29,3,21,0,7,0,0,0,19,14,46,50,50,35,43,27,54,36,43,29,58,50,60,44,70,57,93,71,79,71,80,52,91,62,87,63,126,22,16]} 1. d4 {[%emt 0:00:04]} d5 {[%emt 0:00:16]} 2. Nf3 {[%emt 0:00:28]} c5 {[%emt 0:00:16]} 3. c3 {[%emt 0:01:10]} Nc6 {[%emt 0:00:13]} 4. e3 {[%emt 0:00:54]} cxd4 {[%emt 0:03:03]} 5. exd4 {[%emt 0:00:24]} Bg4 {[%emt 0:00:53]} 6. Be2 {[%emt 0:00:25] B13: Caro-Kann: Exchange Variation and Panov-Botvinnik Attack.} Nf6 {[%emt 0:05:34]} 7. h3 {[%emt 0:01:34]} Bh5 {[%emt 0:02:10]} 8. O-O {[%emt 0:00:07] White has an edge.} e6 {[%emt 0:00:14]} 9. Bf4 {[%emt 0:03:01]} Bd6 {[%emt 0:04:35]} 10. Bxd6 {[%emt 0:04:10]} Qxd6 {[%emt 0:00:02]} 11. Nbd2 {[%emt 0:00:53]} O-O {[%emt 0:00:52]} 12. Re1 {[%emt 0:01:48]} Rad8 {[%emt 0:05:36]} 13. Qc2 {[%emt 0:04:25] [#]} Rfe8 $146 {[%emt 0:01:44]} ({Predecessor:} 13... Bg6 14. Bd3 Bxd3 15. Qxd3 Rfe8 16. Re2 h6 17. Ne5 Qc7 18. Ndf3 Ne4 19. Nxc6 bxc6 {0-1 (49) Schreck,A-Pajer,M Hockenheim 1994}) 14. Rad1 {[%emt 0:06:18]} Rc8 {[%emt 0:01:43]} 15. Qb1 {[%emt 0:00:40]} Nd7 {[%emt 0:01:41]} 16. Bd3 {[%emt 0:01:55]} f5 {[%emt 0:05:45]} 17. Be2 {[%emt 0:08:06]} Nf6 {[%emt 0:02:49]} 18. Ne5 {[%emt 0:02:21]} Bxe2 {[%emt 0:03:33]} 19. Rxe2 {[%emt 0:00:08]} Re7 {[%emt 0:04:28]} 20. Rf1 {[%emt 0:05:47]} Rf8 {[%emt 0:08:25]} 21. Ndf3 {[%emt 0:07:23]} Ne4 {[%emt 0:01:00]} 22. Qd3 {[%emt 0:00:43]} a6 {[%emt 0:08:36]} 23. Nxc6 {[%emt 0:04:05]} Qxc6 {[%emt 0:01:23]} 24. Ne5 {[%emt 0:00:20]} Qd6 {[%emt 0:01:56]} 25. Rfe1 {[%emt 0:00:33]} b5 {[%emt 0:07:39]} 26. a3 {[%emt 0:00:22]} Rfe8 {[%emt 0:01:53]} 27. Re3 {[%emt 0:02:52]} Rf8 {[%emt 0:02:48]} 28. Qe2 {[%emt 0:04:00]} g6 {[%emt 0:02:35]} 29. Qd1 {[%emt 0:03:56]} Kg7 {[%emt 0:03:12]} 30. Nd3 {[%emt 0:00:29]} h6 {[%emt 0:03:25]} (30... f4 $14 31. Rxe4 dxe4 32. Rxe4 Rf5) 31. Nc5 {[%emt 0:04:56]} ({Better is} 31. R3e2 $16) 31... Rfe8 {[%emt 0:06:30] Weighted Error Value: White=0.18 (very precise) /Black=0.17 (very precise)} ({Much less strong is} 31... Qf4 32. Nd3 Qd6 33. f3 $16) 1/2-1/2

[Event "44th Chess Olympiad Open 2022"]
[Site "Chennai"]
[Date "2022.08.09"]
[Round "11.62"]
[White "Barcon, Harmon"]
[Black "Roose Alex"]
[Result "1-0"]
[ECO "B32"]
[WhiteElo "1902"]
[BlackElo "1888"]
[Annotator "NA RC"]
[PlyCount "71"]
[EventDate "2022.07.29"]
[EventType "team-tourn"]
[EventCountry "IND"]
[SourceTitle "playchess.com"]
[Source "ChessBase"]
[SourceQuality "1"]
[WhiteTeam "Liberia"]
[BlackTeam "Netherlands Antilles"]
[WhiteTeamCountry "LBR"]
[BlackTeamCountry "AHO"]
[TimeControl "40/5400+30:1800+30"]

1. e4 {[%emt 0:00:04]} c5 {[%emt 0:00:18]} 2. Nf3 {[%emt 0:00:07]} Nc6 {[%emt 0:00:08]} 3. d4 {[%emt 0:00:10]} cxd4 {[%emt 0:00:19]} 4. Nxd4 {[%emt 0:00:09]} e5 {[%emt 0:00:38]} 5. Nf3 {[%emt 0:00:40]} Nf6 {[%emt 0:01:37]} 6. Bd3 {[%emt 0:01:01]} d5 {[%emt 0:10:21]} 7. exd5 {[%emt 0:00:22]} Qxd5 {[%emt 0:22:11]} 8. O-O {[%emt 0:00:15]} Bg4 {[%emt 0:09:36]} 9. Nc3 {[%emt 0:01:35]} Bxf3 {[%emt 0:05:01]} 10. Nxd5 {[%emt 0:00:16]} Bxd1 {[%emt 0:00:28]} 11. Nc7+ {[%emt 0:00:02]} Kd8 {[%emt 0:03:01]} 12. Nxa8 {[%emt 0:00:03]} Bg4 {[%emt 0:00:54]} 13. Be3 {[%emt 0:00:20]} Kc8 {[%emt 0:04:27]} 14. f3 {[%emt 0:03:05]} Be6 {[%emt 0:00:47]} 15. a4 {[%emt 0:01:08]} Kb8 {[%emt 0:00:27]} 16. Nb6 {[%emt 0:00:04]} axb6 {[%emt 0:00:53]} 17. Bxb6 {[%emt 0:00:02]} Nd7 {[%emt 0:02:47]} 18. Bf2 {[%emt 0:00:17]} Bc5 {[%emt 0:01:47]} 19. a5 {[%emt 0:02:49]} Bxf2+ {[%emt 0:00:16]} 20. Rxf2 {[%emt 0:00:05]} Nc5 {[%emt 0:02:17]} 21. Bf1 {[%emt 0:00:29]} Rd8 {[%emt 0:01:59]} 22. h3 {[%emt 0:02:30]} Ka7 {[%emt 0:03:00]} 23. Rb1 {[%emt 0:02:26]} Rd4 {[%emt 0:06:26]} 24. c3 {[%emt 0:00:54]} Rd8 {[%emt 0:02:22]} 25. b4 {[%emt 0:00:19]} Nd3 {[%emt 0:03:09]} 26. Rd2 {[%emt 0:00:48]} Nf4 {[%emt 0:00:39]} 27. Rxd8 {[%emt 0:00:03]} Nxd8 {[%emt 0:00:06]} 28. b5 {[%emt 0:00:16]} Bf5 {[%emt 0:04:30]} 29. Rd1 {[%emt 0:02:47]} Nde6 {[%emt 0:00:22]} 30. Rd7 {[%emt 0:01:38]} Kb8 {[%emt 0:05:29]} 31. Rxf7 {[%emt 0:02:37]} Bg6 {[%emt 0:03:53]} 32. Re7 {[%emt 0:00:28]} Nc5 {[%emt 0:02:18]} 33. Rxg7 {[%emt 0:01:51]} Nb3 {[%emt 0:02:29]} 34. b6 {[%emt 0:02:09]} Kc8 {[%emt 0:00:32]} 35. a6 {[%emt 0:00:57]} bxa6 {[%emt 0:00:21]} 36. Bxa6+ {[%emt 0:00:26]} 1-0

[Event "44th Chess Olympiad Open 2022"]
[Site "Chennai"]
[Date "2022.08.09"]
[Round "11.63"]
[White "Ahmed, Ali Layth Ahmed"]
[Black "Amini, Habibullah"]
[Result "1-0"]
[ECO "E94"]
[WhiteElo "2249"]
[BlackElo "2035"]
[Annotator "RC"]
[PlyCount "123"]
[EventDate "2022.07.29"]
[EventType "team-tourn"]
[EventCountry "IND"]
[SourceTitle "playchess.com"]
[Source "ChessBase"]
[SourceQuality "1"]
[WhiteTeam "Iraq"]
[BlackTeam "Afghanistan"]
[WhiteTeamCountry "IRQ"]
[BlackTeamCountry "AFG"]
[TimeControl "40/5400+30:1800+30"]

1. d4 {[%emt 0:00:05]} Nf6 {[%emt 0:00:10]} 2. c4 {[%emt 0:00:47]} g6 {[%emt 0:00:08]} 3. Nc3 {[%emt 0:00:06]} Bg7 {[%emt 0:00:08]} 4. e4 {[%emt 0:00:16]} d6 {[%emt 0:00:07]} 5. Be2 {[%emt 0:00:16]} O-O {[%emt 0:00:45]} 6. Bg5 {[%emt 0:00:41]} c6 {[%emt 0:04:45]} 7. Qd2 {[%emt 0:01:38]} Nbd7 {[%emt 0:04:18]} 8. Nf3 {[%emt 0:05:00]} e5 {[%emt 0:00:19]} 9. O-O {[%emt 0:11:33]} Qc7 {[%emt 0:04:37]} 10. Rfe1 {[%emt 0:05:14]} Re8 {[%emt 0:02:42]} 11. d5 {[%emt 0:01:34]} Nc5 {[%emt 0:04:02]} 12. Bd1 {[%emt 0:03:29]} a5 {[%emt 0:02:48]} 13. h3 {[%emt 0:01:34]} cxd5 {[%emt 0:04:22]} 14. cxd5 {[%emt 0:01:05]} Bd7 {[%emt 0:00:18]} 15. a4 {[%emt 0:01:44]} Qb6 {[%emt 0:00:44]} 16. Qc2 {[%emt 0:10:07]} Rac8 {[%emt 0:01:15]} 17. Nd2 {[%emt 0:06:25]} Qb4 {[%emt 0:17:09]} 18. Qb1 {[%emt 0:03:41]} h6 {[%emt 0:01:57]} 19. Be3 {[%emt 0:01:36]} Ncxe4 {[%emt 0:12:38]} 20. Ncxe4 {[%emt 0:04:24]} Nxe4 {[%emt 0:00:08]} 21. Qxe4 {[%emt 0:00:36]} Qxb2 {[%emt 0:00:02]} 22. Qb1 {[%emt 0:04:53]} Qc3 {[%emt 0:00:47]} 23. Be2 {[%emt 0:07:15]} f5 {[%emt 0:08:04]} 24. Rc1 {[%emt 0:04:07]} Qxc1+ {[%emt 0:00:25]} 25. Qxc1 {[%emt 0:00:02]} Rxc1+ {[%emt 0:00:11]} 26. Rxc1 {[%emt 0:00:03]} Bxa4 {[%emt 0:00:14]} 27. Nc4 {[%emt 0:00:29]} Bf8 {[%emt 0:06:30]} 28. Nxa5 {[%emt 0:00:23]} b5 {[%emt 0:01:27]} 29. Rc7 {[%emt 0:04:06]} Ra8 {[%emt 0:01:03]} 30. Nc6 {[%emt 0:00:21]} Bb3 {[%emt 0:00:23]} 31. Nb4 {[%emt 0:01:25]} Ra5 {[%emt 0:06:08]} 32. Ra7 {[%emt 0:04:08]} Ra4 {[%emt 0:00:10]} 33. Nc6 {[%emt 0:04:53]} Rxa7 {[%emt 0:00:51]} 34. Bxa7 {[%emt 0:00:43]} Bxd5 {[%emt 0:00:15]} 35. Bxb5 {[%emt 0:00:02]} Kf7 {[%emt 0:01:17]} 36. Kf1 {[%emt 0:03:54]} Ke6 {[%emt 0:01:26]} 37. Nd8+ {[%emt 0:01:17]} Ke7 {[%emt 0:00:41]} 38. Bb6 {[%emt 0:00:01]} Bg7 {[%emt 0:00:50]} 39. Nc6+ {[%emt 0:01:06]} Ke6 {[%emt 0:00:59]} 40. Nb4 {[%emt 0:00:49]} Bb3 {[%emt 0:03:33]} 41. Ke2 {[%emt 0:31:37]} d5 {[%emt 0:31:19]} 42. Nd3 {[%emt 0:01:20]} Bc4 {[%emt 0:02:35]} 43. Bxc4 {[%emt 0:00:25]} dxc4 {[%emt 0:00:02]} 44. Nb4 {[%emt 0:00:26]} g5 {[%emt 0:06:09]} 45. g4 {[%emt 0:03:47]} e4 {[%emt 0:01:18]} 46. Ke3 {[%emt 0:00:00]} Bb2 {[%emt 0:00:00]} 47. Nc2 {[%emt 0:00:00]} Ke5 {[%emt 0:00:00]} 48. Bc7+ {[%emt 0:00:00]} Ke6 {[%emt 0:00:00]} 49. gxf5+ {[%emt 0:00:00]} Kxf5 {[%emt 0:00:00]} 50. Nd4+ {[%emt 0:00:00]} Bxd4+ {[%emt 0:00:00]} 51. Kxd4 {[%emt 0:00:00]} h5 {[%emt 0:00:00]} 52. Bd6 {[%emt 0:00:00]} h4 {[%emt 0:00:00]} 53. Bh2 {[%emt 0:00:00]} g4 {[%emt 0:00:00]} 54. Kxc4 {[%emt 0:00:00]} e3 {[%emt 0:00:00]} 55. hxg4+ {[%emt 0:00:00]} Kxg4 {[%emt 0:00:00]} 56. fxe3 {[%emt 0:00:00]} Kf3 {[%emt 0:00:00]} 57. Kd4 {[%emt 0:01:40]} h3 {[%emt 0:00:00]} 58. Bf4 {[%emt 0:00:18]} Ke2 {[%emt 0:02:04]} 59. e4 {[%emt 0:00:32]} Kf3 {[%emt 0:00:39]} 60. Ke5 {[%emt 0:00:06]} Kg4 {[%emt 0:00:37]} 61. Bh2 {[%emt 0:00:07]} Kg5 {[%emt 0:01:37]} 62. Kd6 {[%emt 0:00:41]} 1-0

[Event "44th Chess Olympiad Open 2022"]
[Site "Chennai"]
[Date "2022.08.09"]
[Round "11.63"]
[White "Rabeea, Sabah Nori"]
[Black "Sulaiman, Ahmad Ashrafi"]
[Result "1-0"]
[ECO "D48"]
[WhiteElo "2122"]
[BlackElo "1953"]
[Annotator "NA RC"]
[PlyCount "97"]
[EventDate "2022.07.29"]
[EventType "team-tourn"]
[EventCountry "IND"]
[SourceTitle "playchess.com"]
[Source "ChessBase"]
[SourceQuality "1"]
[WhiteTeam "Iraq"]
[BlackTeam "Afghanistan"]
[WhiteTeamCountry "IRQ"]
[BlackTeamCountry "AFG"]
[TimeControl "40/5400+30:1800+30"]

1. d4 {[%emt 0:00:03]} d5 {[%emt 0:00:32]} 2. Nf3 {[%emt 0:00:10]} Nf6 {[%emt 0:00:12]} 3. c4 {[%emt 0:00:07]} c6 {[%emt 0:00:13]} 4. Nc3 {[%emt 0:00:13]} e6 {[%emt 0:00:11]} 5. e3 {[%emt 0:00:23]} Nbd7 {[%emt 0:00:13]} 6. Bd3 {[%emt 0:00:11]} dxc4 {[%emt 0:00:19]} 7. Bxc4 {[%emt 0:00:16]} b5 {[%emt 0:00:06]} 8. Bd3 {[%emt 0:03:12]} a6 {[%emt 0:00:17]} 9. O-O {[%emt 0:00:20]} c5 {[%emt 0:00:41]} 10. b3 {[%emt 0:01:31]} Bb7 {[%emt 0:04:40]} 11. Bb2 {[%emt 0:00:11]} Be7 {[%emt 0:00:22]} 12. Qe2 {[%emt 0:01:48]} O-O {[%emt 0:00:23]} 13. Rfd1 {[%emt 0:00:08]} Qb6 {[%emt 0:00:20]} 14. Rac1 {[%emt 0:00:54]} Rfd8 {[%emt 0:00:20]} 15. Bb1 {[%emt 0:08:07]} Nf8 {[%emt 0:01:10]} 16. a3 {[%emt 0:09:31]} Rac8 {[%emt 0:00:50]} 17. dxc5 {[%emt 0:00:27]} Bxc5 {[%emt 0:00:15]} 18. b4 {[%emt 0:00:36]} Be7 {[%emt 0:03:48]} 19. Nd4 {[%emt 0:01:12]} Ng6 {[%emt 0:02:38]} 20. Ba2 {[%emt 0:14:59]} Rd7 {[%emt 0:06:50]} 21. Nb1 {[%emt 0:06:34]} Rxc1 {[%emt 0:04:51]} 22. Rxc1 {[%emt 0:00:08]} Ne4 {[%emt 0:00:33]} 23. f3 {[%emt 0:11:21]} Nf6 {[%emt 0:01:59]} 24. Nd2 {[%emt 0:01:25]} Rc7 {[%emt 0:00:36]} 25. N2b3 {[%emt 0:06:27]} Rxc1+ {[%emt 0:03:08]} 26. Bxc1 {[%emt 0:01:35]} Bd5 {[%emt 0:01:31]} 27. Qc2 {[%emt 0:02:14]} Bc4 {[%emt 0:02:16]} 28. Na5 {[%emt 0:02:10]} Bxa2 {[%emt 0:00:33]} 29. Qxa2 {[%emt 0:00:02]} Nd5 {[%emt 0:00:30]} 30. Qc2 {[%emt 0:00:53]} Qc7 {[%emt 0:07:34]} 31. Qxc7 {[%emt 0:08:35]} Nxc7 {[%emt 0:00:03]} 32. Ndc6 {[%emt 0:00:30]} Kf8 {[%emt 0:02:07]} 33. e4 {[%emt 0:00:18]} Bd6 {[%emt 0:02:22]} 34. Bb2 {[%emt 0:01:47]} f6 {[%emt 0:00:19]} 35. Nb7 {[%emt 0:01:09]} Be7 {[%emt 0:01:43]} 36. Bd4 {[%emt 0:01:18]} Ke8 {[%emt 0:00:14]} 37. Nb8 {[%emt 0:09:11]} Ne5 {[%emt 0:06:09]} 38. Bxe5 {[%emt 0:03:29]} fxe5 {[%emt 0:00:14]} 39. Nc6 {[%emt 0:00:17]} Bg5 {[%emt 0:00:19]} 40. Nxe5 {[%emt 0:03:34]} Bc1 {[%emt 0:00:40]} 41. Nd3 {[%emt 0:31:38]} Bxa3 {[%emt 0:30:04]} 42. Kf2 {[%emt 0:00:00]} Kd7 {[%emt 0:00:00]} 43. Ke3 {[%emt 0:00:00]} Kc6 {[%emt 0:00:00]} 44. Na5+ {[%emt 0:00:00]} Kb6 {[%emt 0:00:00]} 45. Nb3 {[%emt 0:00:00]} Kc6 {[%emt 0:00:00]} 46. Nd4+ {[%emt 0:00:00]} Kd6 {[%emt 0:00:00]} 47. Nc2 {[%emt 0:00:00]} Bxb4 {[%emt 0:00:00]} 48. Ncxb4 {[%emt 0:00:00]} a5 {[%emt 0:00:00]} 49. e5+ {[%emt 0:00:00]} 1-0

[Event "44th Chess Olympiad Open 2022"]
[Site "Chennai"]
[Date "2022.08.09"]
[Round "11.63"]
[White "Mirzaad, S.wahabuddin"]
[Black "Salih, Akar Ali Salih"]
[Result "1-0"]
[ECO "A45"]
[WhiteElo "1999"]
[BlackElo "2243"]
[Annotator "RC"]
[PlyCount "67"]
[EventDate "2022.07.29"]
[EventType "team-tourn"]
[EventCountry "IND"]
[SourceTitle "playchess.com"]
[Source "ChessBase"]
[SourceQuality "1"]
[WhiteTeam "Afghanistan"]
[BlackTeam "Iraq"]
[WhiteTeamCountry "AFG"]
[BlackTeamCountry "IRQ"]
[TimeControl "40/5400+30:1800+30"]

1. d4 {[%emt 0:00:09]} Nf6 {[%emt 0:00:09]} 2. Bf4 {[%emt 0:00:19]} g6 {[%emt 0:00:16]} 3. Nc3 {[%emt 0:00:14]} d5 {[%emt 0:00:31]} 4. e3 {[%emt 0:00:46]} Bg7 {[%emt 0:00:17]} 5. h4 {[%emt 0:01:58]} h6 {[%emt 0:02:59]} 6. Nf3 {[%emt 0:00:59]} O-O {[%emt 0:02:56]} 7. Be2 {[%emt 0:00:45]} c5 {[%emt 0:04:16]} 8. Nb5 {[%emt 0:01:41]} cxd4 {[%emt 0:03:34]} 9. exd4 {[%emt 0:10:24]} Nc6 {[%emt 0:00:36]} 10. c3 {[%emt 0:07:31]} a6 {[%emt 0:14:07]} 11. Na3 {[%emt 0:00:54]} Ng4 {[%emt 0:05:42]} 12. Qd2 {[%emt 0:04:22]} b5 {[%emt 0:04:08]} 13. Nc2 {[%emt 0:00:50]} Re8 {[%emt 0:04:52]} 14. Rd1 {[%emt 0:04:43]} h5 {[%emt 0:10:07]} 15. Ne3 {[%emt 0:02:51]} Nf6 {[%emt 0:04:45]} 16. Ne5 {[%emt 0:04:39]} Na5 {[%emt 0:07:56]} 17. f3 {[%emt 0:15:30]} Nc4 {[%emt 0:03:43]} 18. Qc1 {[%emt 0:05:45]} Be6 {[%emt 0:01:31]} 19. g4 {[%emt 0:03:00]} Nd6 {[%emt 0:04:27]} 20. Bd3 {[%emt 0:03:50]} Qb6 {[%emt 0:04:51]} 21. Qc2 {[%emt 0:02:36]} hxg4 {[%emt 0:02:08]} 22. fxg4 {[%emt 0:08:30]} Nfe4 {[%emt 0:01:41]} 23. g5 {[%emt 0:05:10]} Nf5 {[%emt 0:05:27]} 24. Nxf5 {[%emt 0:10:34]} Bxf5 {[%emt 0:00:07]} 25. h5 {[%emt 0:01:24]} gxh5 {[%emt 0:00:31]} 26. Rxh5 {[%emt 0:01:25]} Qe6 {[%emt 0:01:08]} 27. Qh2 {[%emt 0:02:33]} f6 {[%emt 0:03:28]} 28. g6 {[%emt 0:00:01]} Bxg6 {[%emt 0:04:38]} 29. Nxg6 {[%emt 0:00:07]} Qg4 {[%emt 0:01:19]} 30. Bxe4 {[%emt 0:01:20]} dxe4 {[%emt 0:00:37]} 31. Rd2 {[%emt 0:00:15]} Kf7 {[%emt 0:02:32]} 32. Rg2 {[%emt 0:00:31]} Qe6 {[%emt 0:00:39]} 33. d5 {[%emt 0:00:27]} Qb6 {[%emt 0:00:11]} 34. Ne5+ {[%emt 0:00:27]} 1-0